bitfinex-derivatives/quotes_BNBF0:USTF0_20250315
["timestamp","ask_amount","ask_price","bid_price","bid_amount"]
[1742047960235,0.26664688,600.73,599.67,10.26851676]
[1742047960441,0.26664688,600.75,599.67,10.26851676]
[1742047960634,0.26664688,600.74,599.67,10.26851676]
[1742047961040,0.26664688,600.73,599.67,10.26851676]
[1742047961236,0.26664688,600.72,599.67,10.26851676]
[1742047961442,0.26664688,600.71,599.67,10.26851676]
[1742047961641,0.26664688,600.75,599.67,10.26851676]
[1742047961841,0.26664688,600.74,599.67,10.26851676]
[1742047962037,0.26664688,600.73,599.67,10.26851676]
[1742047962242,0.26664688,600.72,599.67,10.26851676]
[1742047962438,0.26664688,600.71,599.67,10.26851676]
[1742047962642,0.26664688,600.7,599.67,10.26851676]
[1742047962842,0.33291164,600.76,599.67,10.26851676]
[1742047962843,0.26664688,600.69,599.67,10.26851676]
[1742047963041,0.26664688,600.75,599.67,10.26851676]
[1742047963240,0.26664688,600.74,599.67,10.26851676]
[1742047963438,0.26664688,600.75,599.67,10.26851676]
[1742047963639,0.26664688,600.74,599.67,10.26851676]
[1742047963842,0.26664688,600.75,599.67,10.26851676]
[1742047964043,0.26664688,600.74,599.67,10.26851676]
[1742047964243,0.26664688,600.75,599.67,10.26851676]
[1742047964443,0.26664688,600.74,599.67,10.26851676]
[1742047964638,0.26664688,600.75,599.67,10.26851676]
[1742047964841,0.26664688,600.74,599.67,10.26851676]
[1742047965038,0.26664688,600.75,599.67,10.26851676]
[1742047965843,0.33291164,600.76,599.67,10.26851676]
[1742047966041,0.26664731,600.75,599.67,10.26851676]
[1742047973350,0.26669754,600.74,599.67,10.26851676]
[1742047973653,0.26669754,600.73,599.67,10.26851676]
[1742047973849,0.26669754,600.75,599.67,10.26851676]
[1742047974052,0.26669754,600.74,599.67,10.26851676]
[1742047974357,0.26669754,600.73,599.67,10.26851676]
[1742047974552,0.26669754,600.72,599.67,10.26851676]
[1742047974756,0.26669754,600.71,599.67,10.26851676]
[1742047975057,0.26669754,600.7,599.67,10.26851676]
[1742047975251,0.26669754,600.75,599.67,10.26851676]
[1742047975458,0.26669754,600.74,599.67,10.26851676]
[1742047975656,0.26669754,600.75,599.67,10.26851676]
[1742047991171,0.33291164,600.76,599.67,10.26851676]
[1742047991371,0.26670134,600.75,599.67,10.26851676]
[1742047995673,0.33291164,600.76,599.67,10.26851676]
[1742047995874,0.26670032,600.75,599.67,10.26851676]
[1742047997574,0.33291164,600.76,599.67,10.26851676]
[1742047997770,0.26669981,600.75,599.67,10.26851676]
[1742048000171,0.33291164,600.76,599.67,10.26851676]
[1742048013089,0.2667081,600.75,599.67,10.26851676]
[1742048013291,0.33292272,600.74,599.67,10.26851676]
[1742048013786,0.26669552,600.73,599.67,10.26851676]
[1742048015091,0.26669655,600.72,599.67,10.26851676]
[1742048015390,0.26669655,600.71,599.67,10.26851676]
[1742048015588,0.33292272,600.74,599.67,10.26851676]
[1742048015589,0.26669655,600.7,599.67,10.26851676]
[1742048015792,0.26669655,600.73,599.67,10.26851676]
[1742048015992,0.26669655,600.72,599.67,10.26851676]
[1742048016193,0.26669655,600.73,599.67,10.26851676]
[1742048016393,0.26669655,600.72,599.67,10.26851676]
[1742048016590,0.26669655,600.73,599.67,10.26851676]
[1742048016893,0.33292272,600.74,599.67,10.26851676]
[1742048017091,0.26669683,600.73,599.67,10.26851676]
[1742048018697,0.33292272,600.74,599.67,10.26851676]
[1742048018891,0.26669539,600.73,599.67,10.26851676]
[1742048019096,0.26669948,600.72,599.67,10.26851676]
[1742048019291,0.26669948,600.73,599.67,10.26851676]
[1742048019495,0.26669948,600.72,599.67,10.26851676]
[1742048019697,0.26669948,600.71,599.67,10.26851676]
[1742048019998,0.26669948,600.7,599.67,10.26851676]
[1742048020194,0.33292272,600.74,599.67,10.26851676]
[1742048020195,0.26669948,600.73,599.67,10.26851676]
[1742048020400,0.26669948,600.72,599.67,10.26851676]
[1742048020591,0.2666953,600.71,599.67,10.26851676]
[1742048020797,0.2666953,600.73,599.67,10.26851676]
[1742048022804,0.33292272,600.74,599.67,10.26851676]
[1742048037406,0.26663888,600.73,599.67,10.26851676]
[1742048037911,0.33292272,600.74,599.67,10.26851676]
[1742048038212,0.26663875,600.73,599.67,10.26851676]
[1742048039912,0.26663892,600.72,599.67,10.26851676]
[1742048040113,0.26663892,600.73,599.67,10.26851676]
[1742048040313,0.26663892,600.72,599.67,10.26851676]
[1742048040515,0.26663892,600.73,599.67,10.26851676]
[1742048040713,0.26663892,600.72,599.67,10.26851676]
[1742048040909,0.26663892,600.73,599.67,10.26851676]
[1742048041513,0.26663892,600.73,599.68,0.30615827]
[1742048043011,0.26663892,600.73,599.67,0.33351676]
[1742048044216,0.26663892,600.73,599.67,3.05451676]
[1742048044418,0.26663892,600.73,599.67,4.12351676]
[1742048044614,0.26663892,600.73,599.67,5.24551676]
[1742048044814,0.26663892,600.73,599.67,6.57451676]
[1742048045015,0.26663892,600.73,599.67,7.64351676]
[1742048045416,0.26663892,600.73,599.67,8.90051676]
[1742048045721,0.26663892,600.73,599.67,9.93351676]
[1742048048625,0.33292272,600.74,599.67,9.93351676]
[1742048048924,0.26664493,600.73,599.67,9.93351676]
[1742048053031,0.26664493,600.73,599.68,0.30616436]
[1742048053231,0.26664493,600.73,599.67,9.93351676]
[1742048053630,0.33292272,600.74,599.67,9.93351676]
[1742048053831,0.26664453,600.73,599.67,9.93351676]
[1742048063732,0.26664554,600.72,599.67,9.93351676]
[1742048063936,0.26664554,600.71,599.67,9.93351676]
[1742048064141,0.26664554,600.7,599.67,9.93351676]
[1742048064332,0.26664554,600.73,599.67,9.93351676]
[1742048065641,0.26664994,600.72,599.67,9.93351676]
[1742048065841,0.33292272,600.74,599.67,9.93351676]
[1742048067441,0.26668515,600.73,599.67,9.93351676]
[1742048068039,0.33292272,600.74,599.67,9.93351676]
[1742048072845,0.26666807,600.73,599.67,9.93351676]
[1742048074946,0.33292272,600.74,599.67,9.93351676]
[1742048075247,0.26668708,600.73,599.67,9.93351676]
[1742048080346,0.33292272,600.74,599.67,9.93351676]
[1742048080547,0.26667363,600.73,599.67,9.93351676]
[1742048081148,0.26667338,600.72,599.67,9.93351676]
[1742048081351,0.26667338,600.73,599.67,9.93351676]
[1742048081550,0.26667338,600.72,599.67,9.93351676]
[1742048081747,0.26667338,600.73,599.67,9.93351676]
[1742048084344,0.26667896,600.72,599.67,9.93351676]
[1742048084549,0.26667896,600.73,599.67,9.93351676]
[1742048086048,0.26667778,600.72,599.67,9.93351676]
[1742048086247,0.26667778,600.71,599.67,9.93351676]
[1742048086449,0.26667778,600.7,599.67,9.93351676]
[1742048086649,0.26667778,600.69,599.67,9.93351676]
[1742048086845,0.26667778,600.73,599.67,9.93351676]
[1742048093453,0.33292272,600.74,599.67,9.93351676]
[1742048093649,0.26666588,600.73,599.67,9.93351676]
[1742048095151,0.33292272,600.74,599.67,9.93351676]
[1742048095354,0.26667036,600.73,599.67,9.93351676]
[1742048099358,0.26666491,600.72,599.67,9.93351676]
[1742048099562,0.26666491,600.73,599.67,9.93351676]
[1742048099757,0.33292272,600.74,599.67,9.93351676]
[1742048101059,0.26667201,600.73,599.67,9.93351676]
[1742048101357,0.33292272,600.74,599.67,9.93351676]
[1742048101554,0.26666975,600.73,599.67,9.93351676]
[1742048101758,0.33292272,600.74,599.67,9.93351676]
[1742048102358,0.26666818,600.73,599.67,9.93351676]
[1742048102658,0.33292272,600.74,599.67,9.93351676]
[1742048105756,0.2666489,600.73,599.67,9.93351676]
[1742048107961,0.33292272,600.74,599.67,9.93351676]
[1742048107962,0.26665179,600.72,599.67,9.93351676]
[1742048108162,0.33292272,600.74,599.67,9.93351676]
[1742048119474,0.2666412,600.73,599.67,9.93351676]
[1742048121175,0.33292272,600.74,599.67,9.93351676]
[1742048121376,0.26664134,600.73,599.67,9.93351676]
[1742048124379,0.33292272,600.74,599.67,9.93351676]
[1742048124583,0.26664891,600.73,599.67,9.93351676]
[1742048126985,0.26665559,600.72,599.67,9.93351676]
[1742048127290,0.26665559,600.71,599.67,9.93351676]
[1742048127488,0.33292272,600.74,599.67,9.93351676]
[1742048127688,0.26665403,600.73,599.67,9.93351676]
[1742048129687,0.33292272,600.74,599.67,9.93351676]
[1742048130889,0.26667412,600.73,599.67,9.93351676]
[1742048131490,0.33292272,600.74,599.67,9.93351676]
[1742048134893,0.26670094,600.73,599.67,9.93351676]
[1742048135087,0.33292272,600.74,599.67,9.93351676]
[1742048148208,0.26665967,600.73,599.67,9.93351676]
[1742048149806,0.33292272,600.74,599.67,9.93351676]
[1742048150003,0.26666007,600.73,599.67,9.93351676]
[1742048151709,0.33292272,600.74,599.67,9.93351676]
[1742048152010,0.2666669,600.73,599.67,9.93351676]
[1742048153513,0.33292272,600.74,599.67,9.93351676]
[1742048153811,0.26665835,600.73,599.67,9.93351676]
[1742048155315,0.33292272,600.74,599.67,9.93351676]
[1742048155510,0.26665837,600.73,599.67,9.93351676]
[1742048160916,0.33292272,600.74,599.67,9.93351676]
[1742048161112,0.26666857,600.73,599.67,9.93351676]
[1742048162419,0.33292272,600.74,599.67,9.93351676]
[1742048162720,0.26665991,600.73,599.67,9.93351676]
[1742048168221,0.33292272,600.74,599.67,9.93351676]
[1742048168520,0.26665691,600.73,599.67,9.93351676]
[1742048169518,0.33292272,600.74,599.67,9.93351676]
[1742048169722,0.26666108,600.73,599.67,9.93351676]
[1742048170120,0.33292272,600.74,599.67,9.93351676]
[1742048170322,0.26665501,600.73,599.67,9.93351676]
[1742048171517,0.33292272,600.74,599.67,9.93351676]
[1742048171722,0.26665482,600.73,599.67,9.93351676]
[1742048172222,0.33292272,600.74,599.67,9.93351676]
[1742048172923,0.26674057,600.73,599.67,9.93351676]
[1742048176525,0.33292272,600.74,599.67,9.93351676]
[1742048176928,0.33292272,600.74,599.67,9.91994849]
[1742048189843,0.3174465,600.74,599.67,9.91994849]
[1742048191039,0.26675126,600.73,599.67,9.91994849]
[1742048195043,0.3174465,600.74,599.67,9.91994849]
[1742048195345,0.26675653,600.73,599.67,9.91994849]
[1742048195846,0.3174465,600.74,599.67,9.91994849]
[1742048206554,0.26671636,600.73,599.67,9.91994849]
[1742048208057,0.3174465,600.74,599.67,9.91994849]
[1742048208265,0.26671508,600.73,599.67,9.91994849]
[1742048212058,0.3174465,600.74,599.67,9.91994849]
[1742048212262,0.2667159,600.73,599.67,9.91994849]
[1742048213759,0.3174465,600.74,599.67,9.91994849]
[1742048213962,0.26671596,600.73,599.67,9.91994849]
[1742048215566,0.3174465,600.74,599.67,9.91994849]
[1742048215765,0.26672608,600.73,599.67,9.91994849]
[1742048221067,0.26675239,600.72,599.67,9.91994849]
[1742048221268,0.26675239,600.73,599.67,9.91994849]
[1742048221469,0.26675239,600.72,599.67,9.91994849]
[1742048221664,0.26675239,600.73,599.67,9.91994849]
[1742048221965,0.26675239,600.72,599.67,9.91994849]
[1742048222265,0.26675239,600.71,599.67,9.91994849]
[1742048222463,0.26675239,600.73,599.67,9.91994849]
[1742048222668,0.26675532,600.72,599.67,9.91994849]
[1742048222869,0.26675532,600.73,599.67,9.91994849]
[1742048224571,0.3174465,600.74,599.67,9.91994849]
[1742048224770,0.26675557,600.73,599.67,9.91994849]
[1742048226474,0.3174465,600.74,599.67,9.91994849]
[1742048226667,0.2667533,600.73,599.67,9.91994849]
[1742048237581,0.3174465,600.74,599.67,9.91994849]
[1742048252198,0.26682729,600.73,599.67,9.91994849]
[1742048252598,0.3174465,600.74,599.67,9.91994849]
[1742048252898,0.26678841,600.73,599.67,9.91994849]
[1742048253093,0.3174465,600.74,599.67,9.91994849]
[1742048255903,0.26686827,600.73,599.67,9.91994849]
[1742048256706,0.26687053,600.72,599.67,9.91994849]
[1742048257006,0.26687053,600.71,599.67,9.91994849]
[1742048257206,0.26687053,600.7,599.67,9.91994849]
[1742048257398,0.26687053,600.73,599.67,9.91994849]
[1742048257603,0.26687053,600.72,599.67,9.91994849]
[1742048257804,0.26687053,600.73,599.67,9.91994849]
[1742048258001,0.26687053,600.72,599.67,9.91994849]
[1742048258203,0.26687053,600.73,599.67,9.91994849]
[1742048258406,0.3174465,600.74,599.67,9.91994849]
[1742048258607,0.26686819,600.73,599.67,9.91994849]
[1742048259604,0.26686819,600.73,599.67,9.6]
[1742048259805,0.33293381,600.72,599.67,9.6]
[1742048260010,0.26686819,600.71,599.67,9.6]
[1742048260209,0.33294489,600.7,599.67,9.6]
[1742048260506,0.26692831,600.69,599.67,9.6]
[1742048260703,0.33295598,600.68,599.67,9.6]
[1742048260908,0.26692831,600.67,599.67,9.6]
[1742048261108,0.33296706,600.66,599.67,9.6]
[1742048261409,0.26692831,600.65,599.67,9.6]
[1742048261607,0.33297815,600.64,599.67,9.6]
[1742048261807,0.26692831,600.63,599.67,9.6]
[1742048262007,0.33298924,600.62,599.67,9.6]
[1742048262409,0.26692831,600.61,599.67,9.6]
[1742048262709,0.33300587,600.59,599.67,9.6]
[1742048263205,0.26692831,600.58,599.67,9.6]
[1742048263410,0.33301696,600.57,599.67,9.6]
[1742048263610,0.26692831,600.56,599.67,9.6]
[1742048263806,0.33302805,600.55,599.67,9.6]
[1742048264209,0.26692831,600.54,599.67,9.6]
[1742048264410,0.33303914,600.53,599.67,9.6]
[1742048264709,0.26692831,600.52,599.67,9.6]
[1742048264910,0.33305024,600.51,599.67,9.6]
[1742048265110,0.26692831,600.5,599.67,9.6]
[1742048265306,0.33306133,600.49,599.67,9.6]
[1742048265510,0.26692831,600.48,599.67,9.6]
[1742048265711,0.33307242,600.47,599.67,9.6]
[1742048265911,0.26692831,600.46,599.67,9.6]
[1742048266115,0.33308352,600.45,599.67,9.6]
[1742048266306,0.26692831,600.44,599.67,9.6]
[1742048266507,0.33309461,600.43,599.67,9.6]
[1742048266709,0.26692831,600.42,599.67,9.6]
[1742048267212,0.33309461,600.43,599.67,9.6]
[1742048274417,0.26701489,600.42,599.67,9.6]
[1742048274619,0.33310571,600.41,599.67,9.6]
[1742048275820,0.26704231,600.4,599.67,9.6]
[1742048276014,0.3331168,600.39,599.67,9.6]
[1742048276214,0.26706856,600.38,599.67,9.6]
[1742048276414,0.3331279,600.37,599.67,9.6]
[1742048276616,0.26706856,600.36,599.67,9.6]
[1742048276815,0.333139,600.35,599.67,9.6]
[1742048277118,0.26706856,600.34,599.67,9.6]
[1742048277420,0.60017653,600.33,599.67,9.6]
[1742048277717,0.26702643,600.32,599.67,9.6]
[1742048277918,0.60018208,600.32,599.67,9.6]
[1742048278118,0.26702643,600.31,599.67,9.6]
[1742048278318,0.33316674,600.3,599.67,9.6]
[1742048278619,0.26702643,600.29,599.67,9.6]
[1742048279117,0.3331723,600.29,599.67,9.6]
[1742048279814,0.26705664,600.28,599.67,9.6]
[1742048280017,0.3331834,600.27,599.67,9.6]
[1742048280213,0.26705664,600.26,599.67,9.6]
[1742048281113,0.3331834,600.27,599.67,9.6]
[1742048281815,0.26702271,600.26,599.67,9.6]
[1742048282019,0.3331834,600.27,599.67,9.6]
[1742048282413,0.26698384,600.26,599.67,9.6]
[1742048284416,0.26693543,600.25,599.67,9.6]
[1742048284617,0.26693543,600.26,599.67,9.6]
[1742048284814,0.26693543,600.25,599.67,9.6]
[1742048285017,0.26693543,600.26,599.67,9.6]
[1742048285217,0.26693543,600.25,599.67,9.6]
[1742048285415,0.26693543,600.26,599.67,9.6]
[1742048286418,0.3331834,600.27,599.67,9.6]
[1742048286619,0.26693831,600.26,599.67,9.6]
[1742048290119,0.2669676,600.25,599.67,9.6]
[1742048290324,0.2669676,600.24,599.67,9.6]
[1742048290626,0.2669676,600.23,599.67,9.6]
[1742048290918,0.2669676,600.26,599.67,9.6]
[1742048291123,0.2669676,600.25,599.67,9.6]
[1742048291324,0.2669676,600.24,599.67,9.6]
[1742048291518,0.2669676,600.23,599.67,9.6]
[1742048291721,0.2669676,600.26,599.67,9.6]
[1742048291920,0.2669676,600.25,599.67,9.6]
[1742048292117,0.2669676,600.26,599.67,9.6]
[1742048299624,0.26695481,600.25,599.67,9.6]
[1742048299827,0.26695481,600.26,599.67,9.6]
[1742048301423,0.3331834,600.27,599.67,9.6]
[1742048301725,0.26694713,600.26,599.67,9.6]
[1742048303221,0.3331834,600.27,599.67,9.6]
[1742048303822,2.53816056,600.88,599.67,9.6]
[1742048304022,0.33285623,600.86,599.67,9.6]
[1742048304226,0.26689774,600.85,599.67,9.6]
[1742048304529,0.33287285,600.83,599.67,9.6]
[1742048304727,0.26689774,600.82,599.67,9.6]
[1742048305029,0.33288394,600.81,599.67,9.6]
[1742048305228,0.26687383,600.8,599.67,9.6]
[1742048305425,0.33289502,600.79,599.67,9.6]
[1742048305624,0.26687383,600.78,599.67,9.6]
[1742048305825,0.3329061,600.77,599.67,9.6]
[1742048306022,0.26687383,600.76,599.67,9.6]
[1742048306421,0.33291718,600.75,599.67,9.6]
[1742048306622,0.26687383,600.74,599.67,9.6]
[1742048306829,0.33292827,600.73,599.67,9.6]
[1742048307922,0.26688145,600.72,599.67,9.6]
[1742048308121,0.33293935,600.71,599.67,9.6]
[1742048308322,0.26688145,600.7,599.67,9.6]
[1742048308527,0.33295044,600.69,599.67,9.6]
[1742048308825,0.26688145,600.68,599.67,9.6]
[1742048309030,0.33296152,600.67,599.67,9.6]
[1742048309230,0.26688145,600.66,599.67,9.6]
[1742048309429,0.33297261,600.65,599.67,9.6]
[1742048309724,0.26688145,600.64,599.67,9.6]
[1742048309933,0.5998596,600.64,599.67,9.6]
[1742048310131,0.26688145,600.63,599.67,9.6]
[1742048311026,0.26687384,600.62,599.67,9.6]
[1742048311229,0.26687384,600.63,599.67,9.6]
[1742048311428,0.26687384,600.62,599.67,9.6]
[1742048311626,0.26687384,600.63,599.67,9.6]
[1742048316727,0.33298924,600.62,599.67,9.6]
[1742048316932,0.26687384,600.61,599.67,9.6]
[1742048317229,0.33300033,600.6,599.67,9.6]
[1742048317530,0.26687384,600.59,599.67,9.6]
[1742048317731,0.33301142,600.58,599.67,9.6]
[1742048317929,0.26687384,600.57,599.67,9.6]
[1742048318137,0.5998908,600.57,599.67,9.6]
[1742048318333,0.26687384,600.56,599.67,9.6]
[1742048331147,0.26688666,600.54,599.67,9.6]
[1742048331347,0.26688666,600.56,599.67,9.6]
[1742048331542,0.33301696,600.57,599.67,9.6]
[1742048331741,0.26689164,600.56,599.67,9.6]
[1742048335852,0.26689677,600.55,599.67,9.6]
[1742048336049,0.26689677,600.56,599.67,9.6]
[1742048336352,0.26689677,600.55,599.67,9.6]
[1742048336550,0.26689677,600.56,599.67,9.6]
[1742048336753,0.26689677,600.55,599.67,9.6]
[1742048336952,0.26689677,600.56,599.67,9.6]
[1742048337152,0.33301696,600.57,599.67,9.6]
[1742048337354,0.26689449,600.56,599.67,9.6]
[1742048339159,0.26688555,600.55,599.67,9.6]
[1742048339348,0.26688555,600.56,599.67,9.6]
[1742048342055,0.33301696,600.57,599.67,9.6]
[1742048342252,0.2668496,600.55,599.67,9.6]
[1742048342457,0.2668496,600.54,599.67,9.6]
[1742048342660,0.2668496,600.56,599.67,9.6]
[1742048342852,0.2668496,600.55,599.67,9.6]
[1742048343159,0.2668496,600.54,599.67,9.6]
[1742048343360,0.2668496,600.56,599.67,9.6]
[1742048349771,0.26685653,600.55,599.67,9.6]
[1742048349971,0.26685653,600.56,599.67,9.6]
[1742048350173,0.26685653,600.55,599.67,9.6]
[1742048350373,0.26685653,600.56,599.67,9.6]
[1742048350572,0.26685653,600.55,599.67,9.6]
[1742048350873,0.26685653,600.54,599.67,9.6]
[1742048351068,0.26685653,600.56,599.67,9.6]
[1742048351274,0.26685653,600.55,599.67,9.6]
[1742048351474,0.26685653,600.56,599.67,9.6]
[1742048351671,0.26686534,600.55,599.67,9.6]
[1742048351872,0.26686534,600.56,599.67,9.6]
[1742048352173,0.26686534,600.55,599.67,9.6]
[1742048352475,0.26686534,600.54,599.67,9.6]
[1742048352669,0.26686534,600.56,599.67,9.6]
[1742048352870,0.33301696,600.57,599.67,9.6]
[1742048352871,0.26686534,600.55,599.67,9.6]
[1742048353068,0.26686534,600.54,599.67,9.6]
[1742048353274,0.26686534,600.56,599.67,9.6]
[1742048353476,0.33301696,600.57,599.67,9.6]
[1742048353779,0.26686227,600.56,599.67,9.6]
[1742048361082,0.26683121,600.55,599.67,9.6]
[1742048361376,0.26683121,600.54,599.67,9.6]
[1742048361577,0.33301696,600.57,599.67,9.6]
[1742048361578,0.26683121,600.56,599.67,9.6]
[1742048361784,0.26683121,600.55,599.67,9.6]
[1742048362080,0.26683121,600.54,599.67,9.6]
[1742048362282,0.26683121,600.53,599.67,9.6]
[1742048362482,0.26683121,600.52,599.67,9.6]
[1742048362681,0.26684474,600.51,599.67,9.6]
[1742048362981,0.33301696,600.57,599.67,9.6]
[1742048363174,0.26684423,600.56,599.67,9.6]
[1742048364381,0.33301696,600.57,599.67,9.6]
[1742048364576,0.26684619,600.56,599.67,9.6]
[1742048365081,0.33301696,600.57,599.67,9.6]
[1742048365378,0.26684637,600.56,599.67,9.6]
[1742048366582,0.26684227,600.55,599.67,9.6]
[1742048366776,0.26684227,600.54,599.67,9.6]
[1742048366980,0.26684227,600.53,599.67,9.6]
[1742048367182,0.26684227,600.56,599.67,9.6]
[1742048368386,0.26684242,600.55,599.67,9.6]
[1742048368685,0.26684242,600.54,599.67,9.6]
[1742048368886,0.26684242,600.53,599.67,9.6]
[1742048369080,0.26684242,600.56,599.67,9.6]
[1742048369280,0.26684242,600.55,599.67,9.6]
[1742048369586,0.26684242,600.54,599.67,9.6]
[1742048369787,0.26684242,600.56,599.67,9.6]
[1742048369985,0.26684242,600.55,599.67,9.6]
[1742048370184,0.26684242,600.56,599.67,9.6]
[1742048373887,0.26686915,600.55,599.67,9.6]
[1742048374087,0.26686915,600.56,599.67,9.6]
[1742048374282,0.26686915,600.55,599.67,9.6]
[1742048374483,0.26686915,600.56,599.67,9.6]
[1742048377587,0.26685969,600.55,599.67,9.6]
[1742048377790,0.26685969,600.56,599.67,9.6]
[1742048377990,0.26685969,600.55,599.67,9.6]
[1742048378191,0.26685969,600.56,599.67,9.6]
[1742048378394,0.26685969,600.55,599.67,9.6]
[1742048378593,0.26685969,600.54,599.67,9.6]
[1742048378891,0.26685969,600.53,599.67,9.6]
[1742048379092,0.26685969,600.52,599.67,9.6]
[1742048379285,0.26685969,600.56,599.67,9.6]
[1742048379488,0.26685969,600.55,599.67,9.6]
[1742048379689,0.26685969,600.56,599.67,9.6]
[1742048379887,0.33301696,600.57,599.67,9.6]
[1742048380092,0.26684976,600.56,599.67,9.6]
[1742048381688,0.33301696,600.57,599.67,9.6]
[1742048391591,0.26680921,600.56,599.67,9.6]
[1742048394194,0.33301696,600.57,599.67,9.6]
[1742048394397,0.26680212,600.56,599.67,9.6]
[1742048398197,0.33301696,600.57,599.67,9.6]
[1742048398397,0.26678713,600.56,599.67,9.6]
[1742048399803,0.33301696,600.57,599.67,9.6]
[1742048400102,0.26679319,600.56,599.67,9.6]
[1742048405106,0.33301696,600.57,599.67,9.6]
[1742048405306,0.26679264,600.56,599.67,9.6]
[1742048409306,0.33301696,600.57,599.67,9.6]
[1742048415213,0.26682599,600.56,599.67,9.6]
[1742048418112,0.26682509,600.55,599.67,9.6]
[1742048418312,0.26682509,600.56,599.67,9.6]
[1742048418616,0.26682509,600.55,599.67,9.6]
[1742048418810,0.26682509,600.56,599.67,9.6]
[1742048419011,0.33301696,600.57,599.67,9.6]
[1742048429229,0.26685442,600.56,599.67,9.6]
[1742048431933,0.26685304,600.55,599.67,9.6]
[1742048432232,0.33301696,600.57,599.67,9.6]
[1742048432233,0.26685304,600.54,599.67,9.6]
[1742048432427,0.26685304,600.56,599.67,9.6]
[1742048436834,0.33301696,600.57,599.67,9.6]
[1742048437038,0.26686595,600.56,599.67,9.6]
[1742048438136,0.33301696,600.57,599.67,9.6]
[1742048439539,0.26686074,600.56,599.67,9.6]
[1742048442642,0.33301696,600.57,599.67,9.6]
[1742048442844,0.26689253,600.56,599.67,9.6]
[1742048444446,0.26690967,600.55,599.67,9.6]
[1742048444647,0.26690967,600.54,599.67,9.6]
[1742048444846,0.26690967,600.56,599.67,9.6]
[1742048445148,0.26690967,600.55,599.67,9.6]
[1742048445446,0.26690967,600.54,599.67,9.6]
[1742048445647,0.26690967,600.56,599.67,9.6]
[1742048447449,0.26691556,600.55,599.67,9.6]
[1742048447748,0.59994916,600.54,599.67,9.6]
[1742048447945,0.5999547,600.53,599.67,9.6]
[1742048448149,0.26691556,600.52,599.67,9.6]
[1742048450150,0.2669098,600.51,599.67,9.6]
[1742048450347,0.33303914,600.53,599.67,9.6]
[1742048450348,0.2669098,600.5,599.67,9.6]
[1742048450548,0.2669098,600.52,599.67,9.6]
[1742048450745,0.2669098,600.51,599.67,9.6]
[1742048450950,0.2669098,600.52,599.67,9.6]
[1742048451151,0.2669098,600.51,599.67,9.6]
[1742048451352,0.2669098,600.52,599.67,9.6]
[1742048451545,0.2669098,600.51,599.67,9.6]
[1742048451947,0.26691333,600.5,599.67,9.6]
[1742048452147,0.26691333,600.49,599.67,9.6]
[1742048452345,0.26691333,600.48,599.67,9.6]
[1742048452549,0.26691333,600.52,599.67,9.6]
[1742048452752,0.26691333,600.51,599.67,9.6]
[1742048452948,0.26691333,600.5,599.67,9.6]
[1742048453146,0.26691588,600.49,599.67,9.6]
[1742048453345,0.26691588,600.48,599.67,9.6]
[1742048453552,0.33303914,600.53,599.67,9.6]
[1742048453753,0.26691539,600.52,599.67,9.6]
[1742048454159,0.59996008,600.52,599.67,9.6]
[1742048454355,0.26697813,600.51,599.67,9.6]
[1742048454756,0.33305578,600.5,599.67,9.6]
[1742048455049,0.26697813,600.49,599.67,9.6]
[1742048455255,0.60003946,600.49,599.67,9.6]
[1742048455455,0.26697813,600.48,599.67,9.6]
[1742048455652,0.26697389,600.47,599.67,9.6]
[1742048455855,0.26697389,600.48,599.67,9.6]
[1742048456053,0.26697389,600.47,599.67,9.6]
[1742048456249,0.26697389,600.48,599.67,9.6]
[1742048456449,0.26697389,600.47,599.67,9.6]
[1742048456652,0.26697389,600.48,599.67,9.6]
[1742048459155,0.33306133,600.49,599.67,9.6]
[1742048459456,0.26695778,600.48,599.67,9.6]
[1742048460752,0.33306133,600.49,599.67,9.6]
[1742048460952,0.26689911,600.48,599.67,9.6]
[1742048463957,0.33306133,600.49,599.67,9.6]
[1742048466754,0.26683522,600.48,599.67,9.6]
[1742048468063,0.33306133,600.49,599.67,9.6]
[1742048469763,0.26692261,600.48,599.67,9.6]
[1742048473364,0.33306133,600.49,599.67,9.6]
[1742048473558,0.26694479,600.48,599.67,9.6]
[1742048475164,0.33306133,600.49,599.67,9.6]